[Event "Early-Titled-Tuesday-Blitz-July-09-2024"]
[Site "Chess.com"]
[Date "2024.07.09"]
[Round "7"]
[White "rdarruda"]
[Black "JunjiCol"]
[Result "1-0"]
[WhiteElo "2566"]
[BlackElo "2362"]
[TimeControl "180+1"]
[EndTime "9:19:47 PDT"]
[Termination "rdarruda won by resignation"]

1. d4 {[%clk 0:03:00.9]} 1... d5 {[%clk 0:02:58.2]} 2. Nf3 {[%clk 0:03:00]} 2...
e6 {[%clk 0:02:51.6]} 3. c4 {[%clk 0:02:59.5]} 3... c6 {[%clk 0:02:48.1]} 4. e3
{[%clk 0:02:56.1]} 4... f5 {[%clk 0:02:45.7]} 5. Be2 {[%clk 0:02:53]} 5... Nf6
{[%clk 0:02:45.3]} 6. O-O {[%clk 0:02:52.9]} 6... Bd6 {[%clk 0:02:45.2]} 7. b3
{[%clk 0:02:53.2]} 7... Ne4 {[%clk 0:02:44]} 8. Qc2 {[%clk 0:02:48.3]} 8... Qe7
{[%clk 0:02:42.6]} 9. a4 {[%clk 0:02:48.4]} 9... a5 {[%clk 0:02:38.1]} 10. Ba3
{[%clk 0:02:48.1]} 10... Bxa3 {[%clk 0:02:35.9]} 11. Nxa3 {[%clk 0:02:46.8]}
11... Na6 {[%clk 0:02:36]} 12. Ne5 {[%clk 0:02:39]} 12... Nb4 {[%clk 0:02:33.5]}
13. Qb2 {[%clk 0:02:36.6]} 13... O-O {[%clk 0:02:32.6]} 14. f3 {[%clk
0:02:35.7]} 14... Nd6 {[%clk 0:02:29.7]} 15. Nc2 {[%clk 0:02:35]} 15... f4
{[%clk 0:02:24.2]} 16. Nxb4 {[%clk 0:02:32.5]} 16... axb4 {[%clk 0:02:25.1]} 17.
exf4 {[%clk 0:02:26.9]} 17... Rxf4 {[%clk 0:02:26]} 18. Qd2 {[%clk 0:02:26.1]}
18... g5 {[%clk 0:01:59.2]} 19. g3 {[%clk 0:02:24.5]} 19... Rf8 {[%clk
0:01:55.5]} 20. Qxb4 {[%clk 0:02:24.4]} 20... Bd7 {[%clk 0:01:50.1]} 21. Rae1
{[%clk 0:02:14.2]} 21... b5 {[%clk 0:01:35.4]} 22. cxb5 {[%clk 0:02:04.2]} 22...
cxb5 {[%clk 0:01:35.6]} 23. a5 {[%clk 0:02:04.4]} 23... Rfc8 {[%clk 0:01:18.6]}
24. Bd3 {[%clk 0:02:02]} 24... Be8 {[%clk 0:01:16.9]} 25. Rc1 {[%clk 0:01:54.4]}
25... Qf8 {[%clk 0:01:02]} 26. Rxc8 {[%clk 0:01:35.1]} 26... Rxc8 {[%clk
0:01:02.9]} 27. a6 {[%clk 0:01:31.9]} 27... Ra8 {[%clk 0:01:00.2]} 28. Ra1
{[%clk 0:01:31.6]} 28... Nc8 {[%clk 0:00:38.2]} 29. Qxf8+ {[%clk 0:01:28.8]}
29... Kxf8 {[%clk 0:00:39.1]} 30. Bxh7 {[%clk 0:01:26.6]} 30... Ke7 {[%clk
0:00:38.6]} 31. Bd3 {[%clk 0:01:25]} 31... Kd6 {[%clk 0:00:38.4]} 32. Kf2 {[%clk
0:01:23.8]} 32... Kc7 {[%clk 0:00:38.5]} 33. Ke3 {[%clk 0:01:17.8]} 33... Kb6
{[%clk 0:00:38.5]} 34. f4 {[%clk 0:00:58.7]} 34... gxf4+ {[%clk 0:00:38.1]} 35.
Kxf4 {[%clk 0:00:59.6]} 35... Nd6 {[%clk 0:00:38.3]} 36. g4 {[%clk 0:00:57.7]}
36... b4 {[%clk 0:00:38.4]} 37. Rc1 {[%clk 0:00:53.6]} 37... Nb5 {[%clk
0:00:34.7]} 38. Ra1 {[%clk 0:00:41.9]} 38... Nxd4 {[%clk 0:00:32]} 39. h4 {[%clk
0:00:35.8]} 39... Nxb3 {[%clk 0:00:31]} 40. Rb1 {[%clk 0:00:35.7]} 40... Nc5
{[%clk 0:00:17.7]} 41. Rxb4+ {[%clk 0:00:36.1]} 41... Ka5 {[%clk 0:00:18.3]} 42.
Rb1 {[%clk 0:00:35.6]} 42... Nxd3+ {[%clk 0:00:18.8]} 43. Nxd3 {[%clk
0:00:31.7]} 43... Bg6 {[%clk 0:00:18.4]} 44. Ra1+ {[%clk 0:00:31.4]} 44... Kb6
{[%clk 0:00:18.8]} 45. Ne5 {[%clk 0:00:31.9]} 45... Bh7 {[%clk 0:00:18.3]} 46.
h5 {[%clk 0:00:32.1]} 46... Rxa6 {[%clk 0:00:18.6]} 47. Rxa6+ {[%clk 0:00:31.3]}
47... Kxa6 {[%clk 0:00:19.5]} 48. g5 {[%clk 0:00:31.3]} 48... Kb7 {[%clk
0:00:19.8]} 49. g6 {[%clk 0:00:31.5]} 49... Bg8 {[%clk 0:00:20]} 50. h6 {[%clk
0:00:32.2]} 50... d4 {[%clk 0:00:20.5]} 51. h7 {[%clk 0:00:32]} 51... d3 {[%clk
0:00:21.2]} 52. Ke3 {[%clk 0:00:32.2]} 1-0

[Event "Early-Titled-Tuesday-Blitz-July-09-2024"]
[Site "Chess.com"]
[Date "2024.07.09"]
[Round "7"]
[White "JEHUBNER"]
[Black "johnmez"]
[Result "0-1"]
[WhiteElo "2010"]
[BlackElo "2251"]
[TimeControl "180+1"]
[EndTime "9:19:50 PDT"]
[Termination "johnmez won by resignation"]

1. e4 {[%clk 0:02:41.6]} 1... e6 {[%clk 0:02:59.5]} 2. d4 {[%clk 0:02:41.7]}
2... d5 {[%clk 0:03:00.1]} 3. exd5 {[%clk 0:02:42.6]} 3... exd5 {[%clk 0:03:01]}
4. Nf3 {[%clk 0:02:42.8]} 4... Bd6 {[%clk 0:03:00.5]} 5. Bd3 {[%clk 0:02:43.7]}
5... Ne7 {[%clk 0:03:00.3]} 6. O-O {[%clk 0:02:44.6]} 6... O-O {[%clk
0:03:00.6]} 7. Re1 {[%clk 0:02:45.5]} 7... Bf5 {[%clk 0:02:58.9]} 8. Bg5 {[%clk
0:02:05.2]} 8... f6 {[%clk 0:02:58.8]} 9. Bh4 {[%clk 0:02:03.7]} 9... Nbc6
{[%clk 0:02:56.7]} 10. c3 {[%clk 0:02:03.7]} 10... Qd7 {[%clk 0:02:56.8]} 11.
Bc2 {[%clk 0:02:01.6]} 11... Rfe8 {[%clk 0:02:57]} 12. Nbd2 {[%clk 0:02:00.7]}
12... Bxc2 {[%clk 0:02:47.2]} 13. Qxc2 {[%clk 0:02:01.6]} 13... Nf5 {[%clk
0:02:44.2]} 14. Bg3 {[%clk 0:02:02.2]} 14... Nxg3 {[%clk 0:02:42]} 15. hxg3
{[%clk 0:02:03.1]} 15... Ne7 {[%clk 0:02:36.2]} 16. Nf1 {[%clk 0:02:03.4]} 16...
c6 {[%clk 0:02:21.5]} 17. Re2 {[%clk 0:02:01.9]} 17... Ng6 {[%clk 0:01:48.8]}
18. Rae1 {[%clk 0:02:00.4]} 18... Rxe2 {[%clk 0:01:47.9]} 19. Qxe2 {[%clk
0:02:00.9]} 19... Kf7 {[%clk 0:01:46.2]} 20. N1d2 {[%clk 0:01:56.6]} 20... Re8
{[%clk 0:01:45.3]} 21. Qxe8+ {[%clk 0:01:55.6]} 21... Qxe8 {[%clk 0:01:46.2]}
22. Rxe8 {[%clk 0:01:55.8]} 22... Kxe8 {[%clk 0:01:47.1]} 23. Kf1 {[%clk
0:01:56.1]} 23... Ne7 {[%clk 0:01:35]} 24. g4 {[%clk 0:01:50.1]} 24... g5 {[%clk
0:01:26]} 25. Ne1 {[%clk 0:01:43.4]} 25... Kf7 {[%clk 0:01:25.7]} 26. f3 {[%clk
0:01:41.8]} 26... Ke6 {[%clk 0:01:25.3]} 27. Ke2 {[%clk 0:01:41.8]} 27... Ng6
{[%clk 0:01:24.8]} 28. Nd3 {[%clk 0:01:39.6]} 28... b6 {[%clk 0:01:19.5]} 29.
Nf1 {[%clk 0:01:38]} 29... c5 {[%clk 0:01:15.4]} 30. Ne3 {[%clk 0:01:36]} 30...
c4 {[%clk 0:01:07.9]} 31. Ne1 {[%clk 0:01:35.1]} 31... b5 {[%clk 0:01:06.9]} 32.
Nf5 {[%clk 0:01:33.6]} 32... Bf8 {[%clk 0:01:00.1]} 33. g3 {[%clk 0:01:32.3]}
33... a5 {[%clk 0:00:59.3]} 34. Nc2 {[%clk 0:01:31.2]} 34... b4 {[%clk
0:00:58.6]} 35. Nce3 {[%clk 0:01:26.6]} 35... b3 {[%clk 0:00:51.7]} 36. axb3
{[%clk 0:01:25.6]} 36... cxb3 {[%clk 0:00:51.3]} 37. Kd2 {[%clk 0:01:23.8]}
37... a4 {[%clk 0:00:49.7]} 38. Kc1 {[%clk 0:01:24.4]} 38... Ne7 {[%clk
0:00:44.3]} 39. c4 {[%clk 0:01:23.4]} 39... dxc4 {[%clk 0:00:35.1]} 40. Nxe7
{[%clk 0:01:23.5]} 40... Bxe7 {[%clk 0:00:34.8]} 41. Nxc4 {[%clk 0:01:23.9]}
41... Bd6 {[%clk 0:00:24.8]} 42. Nb6 {[%clk 0:01:16.6]} 42... a3 {[%clk
0:00:23.9]} 43. bxa3 {[%clk 0:01:16.2]} 43... Bxa3+ {[%clk 0:00:24.8]} 44. Kb1
{[%clk 0:01:16.1]} 44... Bd6 {[%clk 0:00:18.9]} 45. Kb2 {[%clk 0:01:15.1]} 45...
Bxg3 {[%clk 0:00:15]} 46. Kxb3 {[%clk 0:01:15.6]} 46... Bc7 {[%clk 0:00:10.5]}
47. Kc4 {[%clk 0:01:16]} 47... Bxb6 {[%clk 0:00:10.1]} 48. d5+ {[%clk
0:01:16.6]} 48... Kd6 {[%clk 0:00:09.9]} 49. Kb5 {[%clk 0:01:17.3]} 49... Be3
{[%clk 0:00:09.8]} 50. Kc4 {[%clk 0:01:18.2]} 50... Bf4 {[%clk 0:00:10.4]} 51.
Kd4 {[%clk 0:01:17.8]} 51... h6 {[%clk 0:00:11]} 52. Ke4 {[%clk 0:01:18.7]}
52... Be5 {[%clk 0:00:11.5]} 53. Kf5 {[%clk 0:01:15.7]} 53... Kxd5 {[%clk
0:00:11.8]} 54. Kg6 {[%clk 0:01:16.6]} 54... Kd4 {[%clk 0:00:11.9]} 55. Kxh6
{[%clk 0:01:17.2]} 55... Ke3 {[%clk 0:00:12]} 56. Kg6 {[%clk 0:01:16.3]} 56...
Kxf3 {[%clk 0:00:12.2]} 57. Kf5 {[%clk 0:01:17.2]} 57... Kg3 {[%clk 0:00:12.6]}
58. Ke4 {[%clk 0:01:17.5]} 58... Kxg4 {[%clk 0:00:12.8]} 59. Kd5 {[%clk
0:01:17.9]} 59... Bb8 {[%clk 0:00:12.7]} 60. Ke4 {[%clk 0:01:17.8]} 60... f5+
{[%clk 0:00:13.2]} 61. Ke3 {[%clk 0:01:18.6]} 61... f4+ {[%clk 0:00:14.1]} 62.
Kf2 {[%clk 0:01:19.5]} 62... f3 {[%clk 0:00:13.9]} 63. Kf1 {[%clk 0:01:20.4]}
63... Kf4 {[%clk 0:00:13.9]} 64. Kg1 {[%clk 0:01:21.3]} 0-1

[Event "Early-Titled-Tuesday-Blitz-July-09-2024"]
[Site "Chess.com"]
[Date "2024.07.09"]
[Round "7"]
[White "DucksParadise"]
[Black "RCone"]
[Result "1-0"]
[WhiteElo "2609"]
[BlackElo "2427"]
[TimeControl "180+1"]
[EndTime "9:19:54 PDT"]
[Termination "DucksParadise won on time"]

1. Nf3 {[%clk 0:03:00.9]} 1... g6 {[%clk 0:02:56.5]} 2. e4 {[%clk 0:02:58.6]}
2... Bg7 {[%clk 0:02:56.2]} 3. d4 {[%clk 0:02:58.5]} 3... d6 {[%clk 0:02:56.7]}
4. Be2 {[%clk 0:02:57.9]} 4... Nf6 {[%clk 0:02:57.2]} 5. Nc3 {[%clk 0:02:58]}
5... O-O {[%clk 0:02:57.4]} 6. O-O {[%clk 0:02:58.2]} 6... Bg4 {[%clk
0:02:57.3]} 7. Be3 {[%clk 0:02:55]} 7... Nc6 {[%clk 0:02:56.5]} 8. h3 {[%clk
0:02:53.3]} 8... Bxf3 {[%clk 0:02:56.1]} 9. Bxf3 {[%clk 0:02:54.2]} 9... e5
{[%clk 0:02:56.4]} 10. Ne2 {[%clk 0:02:53.1]} 10... Re8 {[%clk 0:02:54]} 11. d5
{[%clk 0:02:33.6]} 11... Ne7 {[%clk 0:02:52.1]} 12. c4 {[%clk 0:02:32.5]} 12...
Nd7 {[%clk 0:02:51.5]} 13. Nc3 {[%clk 0:02:25.8]} 13... a5 {[%clk 0:02:48.6]}
14. a3 {[%clk 0:02:24.3]} 14... f5 {[%clk 0:02:45.5]} 15. b4 {[%clk 0:02:22.6]}
15... b6 {[%clk 0:02:45]} 16. exf5 {[%clk 0:02:11.9]} 16... Nxf5 {[%clk
0:02:44.5]} 17. Bd2 {[%clk 0:02:04.5]} 17... e4 {[%clk 0:02:37.1]} 18. Bxe4
{[%clk 0:01:53.8]} 18... axb4 {[%clk 0:01:19.3]} 19. Bxf5 {[%clk 0:01:44]} 19...
bxc3 {[%clk 0:01:14.5]} 20. Bxd7 {[%clk 0:01:19.5]} 20... Qxd7 {[%clk
0:01:08.3]} 21. Be3 {[%clk 0:01:17.7]} 21... Qa4 {[%clk 0:00:51.5]} 22. Qd3
{[%clk 0:01:14.2]} 22... c2 {[%clk 0:00:40.6]} 23. Rac1 {[%clk 0:01:10.5]} 23...
Qxa3 {[%clk 0:00:40.2]} 24. Qxc2 {[%clk 0:01:07.5]} 24... Qa2 {[%clk 0:00:33.6]}
25. Qd1 {[%clk 0:00:58.7]} 25... Ra4 {[%clk 0:00:29.3]} 26. Qg4 {[%clk
0:00:55.6]} 26... Raa8 {[%clk 0:00:16.5]} 27. Qd7 {[%clk 0:00:52.2]} 27... Rac8
{[%clk 0:00:13.7]} 28. Rfe1 {[%clk 0:00:48.9]} 28... Red8 {[%clk 0:00:11.7]} 29.
Qe6+ {[%clk 0:00:47.6]} 29... Kh8 {[%clk 0:00:12.4]} 30. Bg5 {[%clk 0:00:45.1]}
30... Rf8 {[%clk 0:00:10.8]} 31. Re2 {[%clk 0:00:34.7]} 31... Qa3 {[%clk
0:00:10.4]} 32. Rce1 {[%clk 0:00:30.5]} 32... Qc5 {[%clk 0:00:10.4]} 33. Qd7
{[%clk 0:00:20.6]} 33... Bd4 {[%clk 0:00:05]} 34. Re7 {[%clk 0:00:17]} 34...
Bxf2+ {[%clk 0:00:04.5]} 35. Kh2 {[%clk 0:00:16.2]} 35... Bg3+ {[%clk 0:00:03]}
36. Kxg3 {[%clk 0:00:16.3]} 36... Qf2+ {[%clk 0:00:03.3]} 37. Kh2 {[%clk
0:00:16.7]} 1-0

[Event "Early-Titled-Tuesday-Blitz-July-09-2024"]
[Site "Chess.com"]
[Date "2024.07.09"]
[Round "7"]
[White "neistoviupryam"]
[Black "Cherepov_Alexej"]
[Result "1/2-1/2"]
[WhiteElo "2331"]
[BlackElo "2433"]
[TimeControl "180+1"]
[EndTime "9:19:58 PDT"]
[Termination "Game drawn by repetition"]

1. e4 {[%clk 0:03:00.9]} 1... Nf6 {[%clk 0:02:53.4]} 2. Nc3 {[%clk 0:03:00.1]}
2... e5 {[%clk 0:02:50.7]} 3. Nf3 {[%clk 0:02:59.6]} 3... Nc6 {[%clk 0:02:50]}
4. d4 {[%clk 0:02:52.1]} 4... Bb4 {[%clk 0:02:48.8]} 5. dxe5 {[%clk 0:02:49.3]}
5... Nxe4 {[%clk 0:02:46.5]} 6. Bd2 {[%clk 0:02:49.3]} 6... Nxc3 {[%clk
0:02:43.1]} 7. Bxc3 {[%clk 0:02:46.7]} 7... Bxc3+ {[%clk 0:02:43.1]} 8. bxc3
{[%clk 0:02:46.9]} 8... Qe7 {[%clk 0:02:41.8]} 9. Bd3 {[%clk 0:02:35.8]} 9...
Nxe5 {[%clk 0:02:37.4]} 10. O-O {[%clk 0:02:34.3]} 10... O-O {[%clk 0:02:31.3]}
11. Re1 {[%clk 0:02:29.9]} 11... d6 {[%clk 0:02:29.5]} 12. Nxe5 {[%clk
0:02:24.8]} 12... dxe5 {[%clk 0:02:29.5]} 13. Qh5 {[%clk 0:02:21.1]} 13... f5
{[%clk 0:02:21.8]} 14. Bc4+ {[%clk 0:02:15.6]} 14... Kh8 {[%clk 0:02:20.3]} 15.
Re3 {[%clk 0:02:13.2]} 15... Qf6 {[%clk 0:02:13.8]} 16. Rae1 {[%clk 0:02:04.8]}
16... e4 {[%clk 0:02:07.8]} 17. f3 {[%clk 0:01:52.7]} 17... Be6 {[%clk
0:02:01.4]} 18. Bxe6 {[%clk 0:01:50.7]} 18... Qxe6 {[%clk 0:02:02.3]} 19. fxe4
{[%clk 0:01:50.8]} 19... fxe4 {[%clk 0:02:00]} 20. Rxe4 {[%clk 0:01:49.7]} 20...
Qxa2 {[%clk 0:01:58.9]} 21. Re7 {[%clk 0:01:41.5]} 21... Qxc2 {[%clk 0:01:55.4]}
22. Qc5 {[%clk 0:00:59.6]} 22... b6 {[%clk 0:01:41.3]} 23. Qd4 {[%clk
0:00:59.1]} 23... Qg6 {[%clk 0:01:29.1]} 24. Rxc7 {[%clk 0:00:57.2]} 24... a5
{[%clk 0:01:26.3]} 25. Rb7 {[%clk 0:00:54.9]} 25... a4 {[%clk 0:01:17.6]} 26.
Rxb6 {[%clk 0:00:53.5]} 26... Qf7 {[%clk 0:01:16.9]} 27. Rbb1 {[%clk 0:00:48.5]}
27... a3 {[%clk 0:01:13]} 28. h3 {[%clk 0:00:48]} 28... a2 {[%clk 0:01:12.2]}
29. Ra1 {[%clk 0:00:47.8]} 29... Rfd8 {[%clk 0:01:05.3]} 30. Qf2 {[%clk
0:00:40.3]} 30... Qc4 {[%clk 0:01:03.5]} 31. Re2 {[%clk 0:00:31.6]} 31... Qxc3
{[%clk 0:00:48]} 32. Raxa2 {[%clk 0:00:30.4]} 32... Qc1+ {[%clk 0:00:40.9]} 33.
Kh2 {[%clk 0:00:29.8]} 33... Qc7+ {[%clk 0:00:41.5]} 34. Qg3 {[%clk 0:00:27.5]}
34... Qd7 {[%clk 0:00:29.3]} 35. Rxa8 {[%clk 0:00:24.6]} 35... Rxa8 {[%clk
0:00:30.2]} 36. Qe5 {[%clk 0:00:22.3]} 36... h6 {[%clk 0:00:28.6]} 37. Qe6
{[%clk 0:00:19.7]} 37... Qc7+ {[%clk 0:00:27.8]} 38. Qe5 {[%clk 0:00:19.9]}
38... Qf7 {[%clk 0:00:27.1]} 39. Qe6 {[%clk 0:00:18.8]} 39... Qf4+ {[%clk
0:00:26.7]} 40. g3 {[%clk 0:00:18.4]} 40... Qf1 {[%clk 0:00:24.4]} 41. Qe3
{[%clk 0:00:14.4]} 41... Rf8 {[%clk 0:00:21.4]} 42. h4 {[%clk 0:00:12.2]} 42...
Kh7 {[%clk 0:00:19.1]} 43. Qe4+ {[%clk 0:00:11.8]} 43... Kh8 {[%clk 0:00:19.2]}
44. Qe3 {[%clk 0:00:12.1]} 44... Rf6 {[%clk 0:00:18.2]} 45. Qe8+ {[%clk
0:00:11.4]} 45... Rf8 {[%clk 0:00:16.9]} 46. Qe3 {[%clk 0:00:11.7]} 1/2-1/2

[Event "Early-Titled-Tuesday-Blitz-July-09-2024"]
[Site "Chess.com"]
[Date "2024.07.09"]
[Round "7"]
[White "ural58"]
[Black "Barmen_EV"]
[Result "1-0"]
[WhiteElo "2432"]
[BlackElo "2523"]
[TimeControl "180+1"]
[EndTime "9:20:00 PDT"]
[Termination "ural58 won by checkmate"]

1. e4 {[%clk 0:02:43.3]} 1... e6 {[%clk 0:02:59.8]} 2. d4 {[%clk 0:02:42.5]}
2... d5 {[%clk 0:02:59]} 3. Nc3 {[%clk 0:02:42.6]} 3... Nc6 {[%clk 0:02:58.9]}
4. e5 {[%clk 0:02:39.4]} 4... f6 {[%clk 0:02:59]} 5. Nf3 {[%clk 0:02:38.9]} 5...
Bd7 {[%clk 0:02:42.9]} 6. Bf4 {[%clk 0:02:33.7]} 6... f5 {[%clk 0:02:31.4]} 7.
h4 {[%clk 0:02:32.5]} 7... Qe7 {[%clk 0:02:30.4]} 8. a3 {[%clk 0:02:30.8]} 8...
O-O-O {[%clk 0:02:27.1]} 9. b4 {[%clk 0:02:29.8]} 9... Qf7 {[%clk 0:02:17.9]}
10. Be2 {[%clk 0:02:11.2]} 10... h6 {[%clk 0:02:13.4]} 11. Qb1 {[%clk
0:02:03.9]} 11... Nge7 {[%clk 0:02:04.7]} 12. Bd2 {[%clk 0:02:01.8]} 12... f4
{[%clk 0:01:57.8]} 13. b5 {[%clk 0:02:01.1]} 13... Na5 {[%clk 0:01:55]} 14. Nxd5
{[%clk 0:01:56]} 14... Nxd5 {[%clk 0:01:55.4]} 15. Bxa5 {[%clk 0:01:55.8]} 15...
g5 {[%clk 0:01:40.9]} 16. hxg5 {[%clk 0:01:52.5]} 16... Bg7 {[%clk 0:01:40.2]}
17. c4 {[%clk 0:01:52.1]} 17... Ne7 {[%clk 0:01:24]} 18. gxh6 {[%clk 0:01:43.7]}
18... Bxh6 {[%clk 0:01:21.6]} 19. Bb4 {[%clk 0:01:35.5]} 19... Bg7 {[%clk
0:01:15.3]} 20. Rg1 {[%clk 0:01:28.8]} 20... Nf5 {[%clk 0:01:14.3]} 21. a4
{[%clk 0:01:25]} 21... Be8 {[%clk 0:01:05.9]} 22. Bc3 {[%clk 0:01:24.6]} 22...
Qh5 {[%clk 0:00:53.9]} 23. a5 {[%clk 0:01:22.5]} 23... Bg6 {[%clk 0:00:51.3]}
24. Qc1 {[%clk 0:01:06.5]} 24... Bh6 {[%clk 0:00:42.1]} 25. b6 {[%clk
0:01:04.8]} 25... cxb6 {[%clk 0:00:40.4]} 26. a6 {[%clk 0:01:05.1]} 26... Nxd4
{[%clk 0:00:23.1]} 27. axb7+ {[%clk 0:00:50.4]} 27... Kd7 {[%clk 0:00:19]} 28.
Bxd4 {[%clk 0:00:48.1]} 28... Ke7 {[%clk 0:00:18.1]} 29. Rxa7 {[%clk 0:00:45.1]}
29... Rd7 {[%clk 0:00:12.1]} 30. Qa3+ {[%clk 0:00:44]} 30... Kf7 {[%clk
0:00:09.7]} 31. b8=Q {[%clk 0:00:42.5]} 31... Rxb8 {[%clk 0:00:10.3]} 32. Rxd7+
{[%clk 0:00:41.7]} 32... Kg8 {[%clk 0:00:11.2]} 33. Qe7 {[%clk 0:00:38.6]} 33...
Qf5 {[%clk 0:00:08.9]} 34. Nd2 {[%clk 0:00:24.3]} 34... Bf8 {[%clk 0:00:07.8]}
35. Qf6 {[%clk 0:00:19.4]} 35... Qc2 {[%clk 0:00:03]} 36. Rh1 {[%clk 0:00:17.9]}
36... Qc1+ {[%clk 0:00:02.9]} 37. Bd1 {[%clk 0:00:18.1]} 37... Bh7 {[%clk
0:00:01.7]} 38. Rhxh7 {[%clk 0:00:17.2]} 38... Ra8 {[%clk 0:00:02.2]} 39. Qf7#
{[%clk 0:00:17.3]} 1-0

[Event "Early-Titled-Tuesday-Blitz-July-09-2024"]
[Site "Chess.com"]
[Date "2024.07.09"]
[Round "7"]
[White "LileKoridze"]
[Black "Millerkallpa"]
[Result "0-1"]
[WhiteElo "2399"]
[BlackElo "2253"]
[TimeControl "180+1"]
[EndTime "9:20:00 PDT"]
[Termination "Millerkallpa won by resignation"]

1. d4 {[%clk 0:03:00.9]} 1... Nf6 {[%clk 0:02:58.3]} 2. c4 {[%clk 0:03:01.2]}
2... c5 {[%clk 0:02:54.2]} 3. d5 {[%clk 0:03:01.3]} 3... b5 {[%clk 0:02:54.1]}
4. cxb5 {[%clk 0:03:01.6]} 4... a6 {[%clk 0:02:54.1]} 5. bxa6 {[%clk 0:03:01.9]}
5... g6 {[%clk 0:02:53.9]} 6. Nc3 {[%clk 0:03:02.1]} 6... Bxa6 {[%clk
0:02:53.7]} 7. e4 {[%clk 0:03:02.4]} 7... Bxf1 {[%clk 0:02:53.9]} 8. Kxf1 {[%clk
0:03:02.8]} 8... d6 {[%clk 0:02:54.2]} 9. Nf3 {[%clk 0:03:02.9]} 9... Bg7 {[%clk
0:02:54.5]} 10. g3 {[%clk 0:03:03.4]} 10... O-O {[%clk 0:02:54.9]} 11. Kg2
{[%clk 0:03:03.8]} 11... Na6 {[%clk 0:02:52.2]} 12. a4 {[%clk 0:02:50.6]} 12...
Nb4 {[%clk 0:02:45]} 13. Qe2 {[%clk 0:02:50.1]} 13... Qb6 {[%clk 0:02:43.5]} 14.
Nd2 {[%clk 0:02:49.4]} 14... Rfb8 {[%clk 0:02:43.1]} 15. Nc4 {[%clk 0:02:45.5]}
15... Qa6 {[%clk 0:02:43.4]} 16. Re1 {[%clk 0:02:42.3]} 16... Nd7 {[%clk
0:02:41.8]} 17. Bd2 {[%clk 0:02:40.1]} 17... Nc2 {[%clk 0:02:40.7]} 18. Rec1
{[%clk 0:02:38]} 18... Nxa1 {[%clk 0:02:37.1]} 19. Rxa1 {[%clk 0:02:38.3]} 19...
Ne5 {[%clk 0:02:19.7]} 20. b3 {[%clk 0:02:33.3]} 20... Rxb3 {[%clk 0:02:18.4]}
21. Ne3 {[%clk 0:01:55.8]} 21... Qxe2 {[%clk 0:02:13.3]} 22. Nxe2 {[%clk
0:01:56.1]} 22... Nc4 {[%clk 0:02:01]} 23. Ra2 {[%clk 0:01:54.9]} 23... Nxd2
{[%clk 0:01:59.6]} 24. Rxd2 {[%clk 0:01:55.3]} 24... Rxa4 {[%clk 0:02:00]} 25.
Nc1 {[%clk 0:01:54.5]} 25... Rb1 {[%clk 0:01:58.5]} 26. Nd3 {[%clk 0:01:53.7]}
26... Rxe4 {[%clk 0:01:57.8]} 27. Ra2 {[%clk 0:01:51.4]} 27... Bd4 {[%clk
0:01:53.5]} 28. Nf1 {[%clk 0:01:48.5]} 28... c4 {[%clk 0:01:44.9]} 29. Nd2
{[%clk 0:01:46.6]} 29... cxd3 {[%clk 0:01:40.3]} 30. Nxe4 {[%clk 0:01:35.6]}
30... Re1 {[%clk 0:01:36.1]} 31. Kf3 {[%clk 0:01:31.8]} 31... h6 {[%clk
0:01:23.9]} 32. g4 {[%clk 0:01:29.8]} 32... f5 {[%clk 0:01:12.9]} 33. gxf5
{[%clk 0:01:30.1]} 33... gxf5 {[%clk 0:01:13.8]} 34. Ng3 {[%clk 0:01:30.5]}
34... Ra1 {[%clk 0:01:05.9]} 35. Rd2 {[%clk 0:01:26.7]} 35... Be5 {[%clk
0:00:56.4]} 36. Nxf5 {[%clk 0:01:26]} 36... Kf7 {[%clk 0:00:50.1]} 37. Nxh6+
{[%clk 0:01:23.2]} 37... Kg6 {[%clk 0:00:49.5]} 38. Ng4 {[%clk 0:01:23.7]} 38...
Kf5 {[%clk 0:00:43.1]} 39. Nxe5 {[%clk 0:01:20.7]} 39... dxe5 {[%clk 0:00:43.2]}
40. Ke3 {[%clk 0:01:11.2]} 40... e4 {[%clk 0:00:40.9]} 41. f3 {[%clk 0:01:09.3]}
41... Re1+ {[%clk 0:00:35.2]} 42. Kf2 {[%clk 0:01:09.5]} 42... Rh1 {[%clk
0:00:35.5]} 43. fxe4+ {[%clk 0:01:09]} 43... Kxe4 {[%clk 0:00:35.3]} 44. Kg2
{[%clk 0:01:07.8]} 44... Ra1 {[%clk 0:00:34.1]} 45. Kf2 {[%clk 0:01:07.6]} 45...
Ra5 {[%clk 0:00:34]} 46. Rd1 {[%clk 0:01:06.1]} 46... Rxd5 {[%clk 0:00:33.9]}
47. Re1+ {[%clk 0:01:05.7]} 47... Kf4 {[%clk 0:00:33.4]} 48. Rd1 {[%clk
0:01:05.4]} 48... e5 {[%clk 0:00:32.9]} 49. h4 {[%clk 0:01:05.8]} 49... e4
{[%clk 0:00:33.3]} 50. Ra1 {[%clk 0:01:02]} 50... e3+ {[%clk 0:00:32.7]} 51. Ke1
{[%clk 0:01:02.6]} 51... Kf3 {[%clk 0:00:32.5]} 52. Ra3 {[%clk 0:00:53.6]} 52...
d2+ {[%clk 0:00:32]} 53. Kd1 {[%clk 0:00:54.1]} 53... Rc5 {[%clk 0:00:28.3]} 54.
Ra1 {[%clk 0:00:47.1]} 54... Kf2 {[%clk 0:00:25.9]} 55. h5 {[%clk 0:00:44.9]}
55... Rxh5 {[%clk 0:00:25.7]} 56. Kc2 {[%clk 0:00:38.2]} 56... Ke2 {[%clk
0:00:24.5]} 57. Rg1 {[%clk 0:00:35.6]} 57... Rc5+ {[%clk 0:00:23.6]} 0-1